{"text_format":"1","workbook":"xlsx","n_sheets":4,"sheets":["Plan","Design","Interview template","Usos Succar"],"not_rendered":{"charts":0,"images":0,"macros":1,"external_links":0,"defined_names":0,"comments":3,"pivot_tables":0},"unopened":[],"bounds":{"document_bytes":16777216,"sheet_cells":100000,"rows_first":2000,"rows_last":500,"rows_between":2000,"halvings":0,"cell_chars":16384,"cell_head_chars":4096},"cells_cut":0,"cells_raw":0,"read":"whole","date_system":"1900"}

{"sheet":"Plan","index":0,"n_rows":32,"n_cols":12,"rows_kept":32,"cut":false,"hidden":false,"merged":[[27,1,31,1],[17,5,17,7],[17,3,17,4],[17,1,18,2],[19,1,23,1],[25,6,25,9],[25,3,25,5],[25,1,26,2],[1,10,1,11],[1,7,1,9],[3,1,7,1],[11,1,15,1],[1,1,2,2],[9,1,10,2],[1,3,1,6],[9,4,9,6],[9,7,9,8]]}
[]
[null,"Cost Estimation",null,"Source of quantities",null,null,null,"Type of model",null,null,"Applied Systems"]
[null,null,null,"Manual","Just view","Report","Integration","2D","3D","BIM","<50%",">50%"]
[null,"A BIM model is used to generate accurate quantity take-offs and cost estimates.",1,"x",null,null,null,"x",null,null,"y","y"]
[null,null,2,null,"x",null,null,null,"x",null,"y","y"]
[null,null,3,null,null,"x",null,null,null,"x","x"]
[null,null,4,null,null,"x",null,null,null,"x",null,"x"]
[null,null,5,null,null,null,"x",null,null,"x","y","y"]
[]
[null,"Phase Planning",null,"4D model","Type of use",null,null,"Link type"]
[null,null,null,"4D","Communic.","Manual"," Auto","Manual","Auto"]
[null,"A 4D BIM model is utilized to effectively plan, especially spatial planning, including spatial clashes and paths.",1]
[null,null,2,"x","x",null,null,"y","y"]
[null,null,3,"x","x","x",null,"y","y"]
[null,null,4,"x","x","x","x","x"]
[null,null,5,"x","x","x","x",null,"x"]
[]
[null,"Site Analysis",null,"Type of model",null,"Type analysis"]
[null,null,null,"BIM","GIS","Location by visualization","Site options","Location by analysis"]
[null,"BIM/GIS is used to select and evaluate a site location and to select a building position on the site.",1]
[null,null,2,"x",null,"x"]
[null,null,3,"x","x","x"]
[null,null,4,"x","x","x","y","y"]
[null,null,5,"x","x","x","x","x"]
[]
[null,"Space Programming",null,"Type of model",null,null,"Distribution analysis"]
[null,null,null,"2D","3D","BIM","Manual","Consults","Report","Auto"]
[null,"A BIM model is used to design and analyse the project´s spaces and rooms and to assign to each space a use and its measurements.",1,"x",null,null,"x"]
[null,null,2,null,"y","y","x"]
[null,null,3,null,"y","y",null,"x"]
[null,null,4,null,null,"x",null,null,"x"]
[null,null,5,null,null,"x",null,null,null,"x"]

{"sheet":"Design","index":1,"n_rows":48,"n_cols":13,"rows_kept":48,"cut":false,"hidden":false,"merged":[[27,1,31,1],[35,1,39,1],[9,6,9,8],[17,9,17,10],[19,1,23,1],[25,1,26,2],[25,3,25,5],[25,7,25,8],[33,7,33,8],[33,1,34,2],[17,1,18,2],[17,3,17,5],[17,6,17,8],[33,3,33,5],[3,1,7,1],[11,1,15,1],[9,1,10,2],[1,1,2,2],[25,9,25,10],[9,11,9,12],[9,9,9,10],[9,3,9,5],[1,6,1,7],[1,8,1,9],[1,3,1,5],[41,1,42,2],[41,3,41,5],[41,6,41,7],[41,8,41,9],[43,1,47,1]]}
[]
[null,"Design Review",null,"Type of model",null,null,"Immersive lab",null,"List of requirements"]
[null,null,null,"2D","3D","BIM","No","Yes","Informal","Formal"]
[null,"A process in which stakeholders interact with a BIM model and provide their feedback to validate multiple design aspects.",1,"x",null,null,null,null,"y","y"]
[null,null,2,null,"x",null,"y","y","y","y"]
[null,null,3,null,null,"x","y","y","x"]
[null,null,4,null,null,"x","x",null,null,"x"]
[null,null,5,null,null,"x",null,"x",null,"x"]
[]
[null,"Code Validation",null,"Type of software",null,null,"Type of model",null,null,"Applied system",null,"Level of mock-up"]
[null,null,null,"Manual","Consults","Auto","2D","3D","BIM","<50%",">50%","Geometry","Parametric"]
[null,"A process in which code validation software is utilized to check the model parameters against project-specific design or construction codes or norms.",1,"x",null,null,"x",null,null,"y","y","x"]
[null,null,2,null,"x",null,null,"y","y","x",null,"x"]
[null,null,3,null,null,"x",null,null,"x","x",null,"x"]
[null,null,4,null,null,"x",null,null,"x","x",null,"x","x"]
[null,null,5,null,null,"x",null,null,"x",null,"x","x","x"]
[]
[null,"Sustainable analysis",null,"Type of model",null,null,"Type of software",null,null,"Applied system"]
[null,null,null,"2D","3D","BIM","Manual","Consults","Auto","<50%",">50%"]
[null,"A process in which the sustainability of a facility is evaluated and tracked using a sustainability metric system",1,"y","y",null,"x",null,null,"y","y"]
[null,null,2,null,"x",null,null,"x",null,"y","y"]
[null,null,3,null,null,"x",null,"x",null,"y","y"]
[null,null,4,null,null,"x",null,null,"x","x"]
[null,null,5,null,null,"x",null,null,"x",null,"x"]
[]
[null,"Engineering analysis",null,"Type of model",null,null,"Compatible software","Applied systems",null,"Documentation"]
[null,null,null,"2D","3D","BIM",null,"<50%",">50%","2D","3D"]
[null,"A BIM model and specialized software are used to conduct an engineering analysis to identify the most efficient method or design.",1,"x",null,null,null,"y","y","x"]
[null,null,2,null,"y","y",null,"y","y","y","y"]
[null,null,3,null,null,"x","x","x",null,"y","y"]
[null,null,4,null,null,"x","x",null,"x","x"]
[null,null,5,null,null,"x","x",null,"x",null,"x"]
[]
[null,"Design Authoring",null,"Type of model",null,null,"Generative models","Applied systems"]
[null,null,null,"2D","3D","BIM",null,"<50%",">50%"]
[null,"A process in which 3D software is used to develop a Building Information Model. A project is designed in a BIM model, where the typical iterations of a project are made, and everything is built directly in the BIM software.",1,"x",null,null,null,"y","y"]
[null,null,2,null,"x",null,null,"y","y"]
[null,null,3,null,null,"x",null,"y","y"]
[null,null,4,null,null,"x","x","x"]
[null,null,5,null,null,"x","x",null,"x"]
[]
[null,"3D Coordination",null,"Type of model",null,null,"Type analysis",null,"Applied systems"]
[null,null,null,"2D","3D","BIM","Manual","Auto","<50%",">50%"]
[null,"A process in which 3D coordination software is used to identify 3D geometric conflicts by comparing 3D models of building systems.",1,"x",null,null,"x",null,"y","y"]
[null,null,2,null,"x",null,"y","y","y","y"]
[null,null,3,null,null,"x","x",null,"x"]
[null,null,4,null,null,"x","x","x","x"]
[null,null,5,null,null,"x","x","x",null,"x"]

{"sheet":"Interview template","index":2,"n_rows":32,"n_cols":15,"rows_kept":32,"cut":false,"hidden":false,"merged":[[12,2,14,2],[12,3,14,3],[3,1,14,1],[3,5,3,8],[6,6,6,8],[6,2,8,2],[6,3,8,3],[9,5,9,6],[9,7,9,9],[9,2,11,2],[9,3,11,3],[3,2,5,2],[3,3,5,3],[4,4,5,4],[18,13,18,14],[21,5,21,7],[21,8,21,10],[21,11,21,12],[15,2,17,2],[15,3,17,3],[18,2,20,2],[18,3,20,3],[21,2,23,2],[21,3,23,3],[15,5,15,7],[15,8,15,9],[15,10,15,11],[18,5,18,7],[18,8,18,10],[18,11,18,12],[15,1,32,1],[24,5,24,7],[24,9,24,10],[24,11,24,12],[27,5,27,7],[27,9,27,10],[30,5,30,7],[30,8,30,9],[30,10,30,11],[19,4,20,4],[24,2,26,2],[24,3,26,3],[27,2,29,2],[27,3,29,3],[30,2,32,2],[30,3,32,3],[3,12,3,13],[7,4,8,4],[10,4,11,4],[13,4,14,4],[16,4,17,4],[12,5,12,7],[12,8,12,11],[6,9,6,10],[22,4,23,4],[25,4,26,4],[28,4,29,4],[31,4,32,4],[3,9,3,11]]}
[]
[]
[]
[null,"Plan"," Cost Estimation",{"$f":"+Plan!B4","v":"A BIM model is used to generate accurate quantity take-offs and cost estimates."},"Level",{"$f":"+Plan!D2","v":"Source of quantities"},null,null,null,{"$f":"+Plan!H2","v":"Type of model"},null,null,{"$f":"+Plan!K2","v":"Applied Systems"}]
[null,null,null,null,null,{"$f":"+Plan!D3","v":"Manual"},{"$f":"+Plan!E3","v":"Just view"},{"$f":"+Plan!F3","v":"Report"},{"$f":"+Plan!G3","v":"Integration"},{"$f":"+Plan!H3","v":"2D"},{"$f":"+Plan!I3","v":"3D"},{"$f":"+Plan!J3","v":"BIM"},{"$f":"+Plan!K3","v":"<50%"},{"$f":"+Plan!L3","v":">50%"}]
[]
[null,null,"Phase Planning",{"$f":"+Plan!B12","v":"A 4D BIM model is utilized to effectively plan, especially spatial planning, including spatial clashes and paths."},"Level",{"$f":"+Plan!D10","v":"4D model"},{"$f":"+Plan!E10","v":"Type of use"},null,null,{"$f":"+Plan!H10","v":"Link type"}]
[null,null,null,null,null,{"$f":"+Plan!D11","v":"4D"},{"$f":"+Plan!E11","v":"Communic."},{"$f":"+Plan!F11","v":"Manual"},{"$f":"+Plan!G11","v":" Auto"},{"$f":"+Plan!H11","v":"Manual"},{"$f":"+Plan!I11","v":"Auto"}]
[]
[null,null,"Site Analysis",{"$f":"+Plan!B20","v":"BIM/GIS is used to select and evaluate a site location and to select a building position on the site."},"Level",{"$f":"+Plan!D18","v":"Type of model"},null,"Type analysis"]
[null,null,null,null,null,"BIM","GIS","Location by visualization","Site options","Location by analysis"," "]
[]
[null,null,"Space Programming",{"$f":"+Plan!B28","v":"A BIM model is used to design and analyse the project´s spaces and rooms and to assign to each space a use and its measurements."},"Level",{"$f":"+Plan!D26","v":"Type of model"},null,null,{"$f":"+Plan!G26","v":"Distribution analysis"}]
[null,null,null,null,null,"2D","3D","BIM","Manual","Consults","Report","Auto"]
[]
[null,"Design","Design Review",{"$f":"+Design!B4","v":"A process in which stakeholders interact with a BIM model and provide their feedback to validate multiple design aspects."},"Level",{"$f":"+Design!D2","v":"Type of model"},null,null,{"$f":"+Design!G2","v":"Immersive lab"},null,{"$f":"+Design!I2","v":"List of requirements"}]
[null,null,null,null,null,"2D","3D","BIM","No","Yes","Informal","Formal"]
[]
[null,null,"Code Validation",{"$f":"+Design!B12","v":"A process in which code validation software is utilized to check the model parameters against project-specific design or construction codes or norms."},"Level",{"$f":"+Design!D10","v":"Type of software"},null,null,{"$f":"+Design!G10","v":"Type of model"},null,null,{"$f":"+Design!J10","v":"Applied system"},null,{"$f":"+Design!L10","v":"Level of mock-up"}]
[null,null,null,null,null,{"$f":"+Design!D11","v":"Manual"},{"$f":"+Design!E11","v":"Consults"},{"$f":"+Design!F11","v":"Auto"},{"$f":"+Design!G11","v":"2D"},{"$f":"+Design!H11","v":"3D"},{"$f":"+Design!I11","v":"BIM"},{"$f":"+Design!J11","v":"<50%"},{"$f":"+Design!K11","v":">50%"},{"$f":"+Design!L11","v":"Geometry"},{"$f":"+Design!M11","v":"Parametric"}]
[]
[null,null,"Sustainable analysis",{"$f":"+Design!B20","v":"A process in which the sustainability of a facility is evaluated and tracked using a sustainability metric system"},"Level",{"$f":"+F16","v":"Type of model"},null,null,{"$f":"+F19","v":"Type of software"},null,null,{"$f":"+L19","v":"Applied system"}]
[null,null,null,null,null,"2D","3D","BIM","Manual","Consults","Auto","<50%",">50%"]
[]
[null,null,"Engineering analysis",{"$f":"+Design!B28","v":"A BIM model and specialized software are used to conduct an engineering analysis to identify the most efficient method or design."},"Level",{"$f":"+F22","v":"Type of model"},null,null,{"$f":"+Design!G26","v":"Compatible software"},{"$f":"+L22","v":"Applied system"},null,"Documentation"]
[null,null,null,null,null,"2D","3D","BIM",null,"<50%",">50%","2D","3D"]
[]
[null,null,"Design Authoring",{"$f":"+Design!B36","v":"A process in which 3D software is used to develop a Building Information Model. A project is designed in a BIM model, where the typical iterations of a project are made, and everything is built directly in the BIM software."},"Level",{"$f":"+F25","v":"Type of model"},null,null,"Generative models",{"$f":"+J25","v":"Applied system"}]
[null,null,null,null,null,"2D","3D","BIM",null,"<50%",">50%"]
[]
[null,null,"3D Coordination",{"$f":"+Design!B44","v":"A process in which 3D coordination software is used to identify 3D geometric conflicts by comparing 3D models of building systems."},"Level",{"$f":"+F25","v":"Type of model"},null,null,"Type analysis",null,{"$f":"+J28","v":"Applied system"}]
[null,null,null,null,null,"2D","3D","BIM","Manual","Auto","<50%",">50%"]

{"sheet":"Usos Succar","index":3,"n_rows":61,"n_cols":14,"rows_kept":61,"cut":false,"hidden":true,"merged":[[56,1,60,1],[1,1,12,1],[13,1,39,1],[40,1,48,1],[49,1,55,1]]}
[]
[null,"Planning and designing",1,"Conceptualization","La investigación inicial sobre las posibles opciones de diseño y requerimientos espaciales. Se usan herramientas de análisis espacial",null,null,null,null,null,null,null,"Es algo demasiado básico para usar BIM me parece"]
[null,null,2,"Construction Planning","Se organizan las actividades y las restricciones, parecido al 4D",null,null,null,null,null,null,null,"En planeación no se si se haga con BIM"]
[null,null,3,"Demolition Planning","4D especificamente para demolición",null,null,null,null,null,null,"Sub uso",""]
[null,null,4,"Design Authoring","Habla de modelos generativos para generar distintas opciones con modelos parametricos",null,null,null,null,null,null,null,"Más  que sub uso, puede ser un elemento para revisar en el de pennstate"]
[null,null,5,"Disaster planning","Planear desastres",null,null,null,null,null,null,"Sub uso"]
[null,null,6,"Lean Process Analysis","Análisis que se hace para minimizar desperdicios y maximizar el valor",null,null,null,null,null,null,"Sub uso","Pienso que va implicito al usar BIM, el análisis lean como tal se puede hacer de otra forma"]
[null,null,7,"Lift Planning","Como que para planear las cosas verticales, columnas, muros, prefabricados.",null,null,null,null,null,null,"Sub uso","Too much, demasiado especifico"]
[null,null,8,"Operations Planning","Planeación de operaciones",null,null,null,null,null,null,"Sub uso","Creo ue eso se considera dentro de la planeación de espacio"]
[null,null,9,"Selection and Espeification ","3D para selección, identificación, especificación y adquisición de materiales",null,null,null,null,null,null,"Sub uso","Cero relevante"]
[null,null,10,"Space Programming","Análisis espacial",null,null,null,null,null,null,"Ya"]
[null,null,11,"Urban Planning","Planeación de la parte urbana",null,null,null,null,null,null,"Sub uso","","Muy especifico, don´t like it"]
[null,null,12,"Value Analysis","3D para la gestión de valor",null,null,null,null,null,null,"Sub / uso","","No se que tan relevante sea"]
[null,"Simulating and quantifying",13,"Accessibility Analysis","Análisis del equipamiento del edificio para discapacitados",null,null,null,null,null,null,"Sub uso","","Muy especifico, don´t like it"]
[null,null,14,"Acoustic Analysis","Análisis acustico",null,null,null,null,null,null,"Sub uso","","Muy especifico, don´t like it"]
[null,null,15,"Augmented Reality Simulation","Realidad aumentada, es realiada inmersiva parcial, se hace sibre ibjetos como el app del i pad",null,null,null,null,null,null,"Sub uso","","No se que tan relevante sea"]
[null,null,16,"Clash detection","Resolución de conflictos",null,null,null,null,null,null,null,"Ya"]
[null,null,17,"Code checking validation","Validación de normas automatizado",null,null,null,null,null,null,null,"Ya"]
[null,null,18,"Constructibility Aanalysis","Revisión del proceso constructivo, para identificar potenciales obstaculos y retrasos.",null,null,null,null,null,null,null,"","La misma vaina"]
[null,null,19,"Construction operation analysis","La misma vaina de planeación de obra",null,null,null,null,null,null,null,""]
[null,null,20,"Cost estimation","presupuestos",null,null,null,null,null,null,null,"Ya"]
[null,null,21,"Egress and ingress","Es como simulaciones de evacuación",null,null,null,null,null,null,"Sub uso","","No se me hace relevante"]
[null,null,22,"Energy Utilisation","Simulación energética del edificio",null,null,null,null,null,null,null,"Ya"]
[null,null,23,"Finite elements Analysis","Análisis estructural",null,null,null,null,null,null,null,"Ya","Algo de ingeniería"]
[null,null,24,"Fire and smoke simulation","Simulación de incendios",null,null,null,null,null,null,"Sub uso","","No se me hace relevante"]
[null,null,25,"Lighting Analysis","Simulación de luz natural y artificial",null,null,null,null,null,null,"Sub uso","","Algo de ingeniería"]
[null,null,26,"Quantity take-off","Cantidades",null,null,null,null,null,null,"Sub uso","","La misma vaina de costos no va"]
[null,null,27,"Reflectivity Analysis","Reflectancia",null,null,null,null,null,null,"Sub uso","","Algo de ingeniería"]
[null,null,28,"Risk and Hazars Assessment","Identificar, analizar y evaluar los riesgos y peligros",null,null,null,null,null,null,"Sub uso",""]
[null,null,29,"Safety Analysis","Análisis de seguridad",null,null,null,null,null,null,"Sub uso",""]
[null,null,30,"Security Analysis","Seguridad de ataques terroristas o seguridad normal, rutas de acceso en carri etc.",null,null,null,null,null,null,"Sub uso","","Rebuscao"]
[null,null,31,"Site Analysis","Gis",null,null,null,null,null,null,null,"Ya"]
[null,null,32,"Solar Analysis","Análisis solar",null,null,null,null,null,null,null,""]
[null,null,33,"Spatial Analysis","La misma vaina que clash detection",null,null,null,null,null,null,null,""]
[null,null,34,"Structural Analysis","Análisis estructural, muy parecido a los elementos finitos",null,null,null,null,null,null,null,""]
[null,null,35,"Sustainability Analysis","Análisis sotenible, huella de carbono",null,null,null,null,null,null,null,"Ya"]
[null,null,36,"Thermal Analysis","cargas térmicas para el sistema mecánico",null,null,null,null,null,null,null,""]
[null,null,37,"Virtual Reality Simulation","Simulación virtual, con gafas",null,null,null,null,null,null,null,""]
[null,null,38,"Life Cycle Assessment","Dice cuantos métodos distintos se han aplicado al modelo para medir el impacto ambiental",null,null,null,null,null,null,null,"","No se me hace relevante"]
[null,null,39,"Wind Studies","Simulación de vientos",null,null,null,null,null,null,null,"","Se me hace que va de la parte estructural o algo"]
[null,"Constructing and frabricating",40,"3D printing","Imprimir en 3D el modelo, no es uso como tal, va dentro de las herramientas en los usos q ya tengo",null,null,null,null,null,null,null,""]
[null,null,41,"Architectural Modules Prefabrication","Modelo 3D para fabricar, diseñar y detallar unidades modulares como baños, casa…",null,null,null,null,null,null,null,""]
[null,null,42,"Casework Prefabrication","De este hay uno en los usos que ya tengo, revisarlo",null,null,null,null,null,null,null,""]
[null,null,43,"Concrete Precasting","Redundante?",null,null,null,null,null,null,null,""]
[null,null,44,"Construction Logistics","Planeación de las cuadrillas durante la construcción, de la mano con el , considera la estructura temporal",null,null,null,null,null,null,null,"","."]
[null,null,45,"Construction Waste Management","Medir las perdidas y hacer simulaciones está bien explicadito",null,null,null,null,null,null,null,""]
[null,null,46,"Mechanical Assemblies Prefabrication","diseñar, detallar y fabricar modulos mécanicos.",null,null,null,null,null,null,null,""]
[null,null,47,"Sheet Metal Forming","Para llevar un control del acero creo, porque habla de un proceso de doblado, perforado, cortado…",null,null,null,null,null,null,null,""]
[null,null,48,"Site Set-outs","Donde poner los elementos pre fabricados, demasiado especifico para mi gusto.",null,null,null,null,null,null,null,""]
[null,"Operating and Maintaining",49,"Asset Maintenance","Mantenimiento de activos, vinculados  a base de dato externas a través de middleware especializados",null,null,null,null,null,null,null,""]
[null,null,50,"Asset Procurement","Gestionar la adquisión de activos operativos ej repuestos , luces y así, valoración, negociación, compra…",null,null,null,null,null,null,null,"Se me hace lo mismo que el de arriba"]
[null,null,51,"Asset Tracking","Rastrear activos fijos y moviles, no entiendo para que sirve, pero seguor para  nada",null,null,null,null,null,null,null,""]
[null,null,52,"Building Inspection","Inspeccionár y reportar las condiciones del edifico. Tampoco veo a que se refiere",null,null,null,null,null,null,null,"Solo como un paso"]
[null,null,53,"Handover and Commissioning","La entrega del edificio con manuales certificados, ect, no es un uso como tal",null,null,null,null,null,null,null,"Ya"]
[null,null,54,"Relocation Management","Reubicación de activos moviles en el edificio, nada",null,null,null,null,null,null,null,"No lo veo necesario"]
[null,null,55,"Space Management","Espacios en el proyecto",null,null,null,null,null,null,null,"Ya"]
[null,"Monitoring and Controlling",56,"Building Automation","Monitorear o controlar una instalación a través de sus sistema de gestión de edificios",null,null,null,null,null,null,null,""]
[null,null,57,"Field BIM","Uso del modelo en la construcción, tablets, pantallas… marca dibujos en el modelo y así",null,null,null,null,null,null,"Ya","Creo que no va en esta fase"]
[null,null,58,"Performance Monitoring","Monitoraear y administrar la utilización de la energía",null,null,null,null,null,null,"Sub uso","Se puede incluir en buildin auomation"]
[null,null,59,"Real time Utilization","Se alimenta en tiempo real con sensores del edificio. Ocupación, temperatura, humedad, toxicidad...",null,null,null,null,null,null,null,""]
[null,null,60,"Structural Health Monitoring","Más que todo para infraestructura como puentes y así pero aja",null,null,null,null,null,null,null,""]